bitfinex/quotes_ETHUSD_20240721
["timestamp","ask_amount","ask_price","bid_price","bid_amount"]
[1721582070721,0.29707924,3523.0,3522.6,2.2737]
[1721582070886,0.29707924,3523.0,3522.6,5.1125]
[1721582073011,0.29707924,3523.0,3522.7,2.83871]
[1721582075329,0.29707924,3523.0,3522.6,5.1125]
[1721582077729,0.29707924,3523.0,3522.6,2.2737]
[1721582077890,3.13556924,3523.0,3522.6,2.2737]
[1721582079922,3.13556924,3523.0,3522.2,11.04799886]
[1721582079923,2.83859,3522.9,3522.2,11.04799886]
[1721582080711,2.83859,3522.9,3522.2,5.25697]
[1721582083228,0.29707924,3523.0,3522.3,2.83904]
[1721582083531,0.29707924,3523.0,3522.5,2.83888]
[1721582084291,0.29707924,3523.0,3522.3,2.83905]
[1721582084292,0.29707924,3523.0,3522.9,2.83857]
[1721582084486,0.29707924,3523.0,3522.7,2.83872]
[1721582085327,0.29707924,3523.0,3522.8,2.83864]
[1721582088022,0.29707924,3523.0,3522.6,5.1161]
[1721582088023,0.29707924,3523.0,3522.6,2.2773]
[1721582090340,3.13556924,3523.0,3522.3,2.83899]
[1721582090538,3.13556924,3523.0,3522.5,2.2773]
[1721582091405,0.29707924,3523.0,3522.5,5.11617]
[1721582095465,0.29707924,3523.0,3522.7,2.83873]
[1721582098850,0.29707924,3523.0,3522.5,5.11617]
[1721582099053,0.29707924,3523.0,3522.5,2.2773]
[1721582099916,3.13556924,3523.0,3522.5,2.2773]
[1721582100371,2.83857,3522.9,3522.5,2.2773]
[1721582100650,2.83857,3522.9,3522.2,2.83913]
[1721582101423,0.29707924,3523.0,3522.1,2.2521]
[1721582101629,0.29707924,3523.0,3522.9,7.92924]
[1721582101947,2.83777,3523.9,3523.2,2.8383]
[1721582102151,0.29706275,3523.7,3523.3,2.2521]
[1721582102354,2.838,3523.6,3522.9,2.2521]
[1721582102510,1.50736275,3523.7,3522.4,0.58809861]
[1721582102511,0.29706275,3523.7,3522.4,0.58809861]
[1721582102725,0.29706275,3523.7,3521.9,5.79102886]
[1721582102726,1.2103,3522.9,3521.9,5.79102886]
[1721582102924,1.2103,3522.9,3521.7,5.79102886]
[1721582102925,2.83924,3522.1,3521.7,5.79102886]
[1721582103126,2.83924,3522.1,3521.5,2.2521]
[1721582103327,2.83938,3521.9,3521.5,2.2521]
[1721582103839,3.407079,3522.1,3521.5,2.2521]
[1721582104563,2.83933,3522.0,3521.5,2.2521]
[1721582105356,0.567829,3522.1,3521.5,2.2521]
[1721582105563,2.83897,3522.4,3521.5,2.2521]
[1721582105858,4.2103,3522.9,3521.8,2.83944]
[1721582106033,5.83865,3522.8,3521.7,2.83953]
[1721582106233,2.83874,3522.7,3522.0,2.2521]
[1721582106434,3.283874,3522.6,3522.0,2.2521]
[1721582106753,6.122714,3522.6,3522.0,2.2521]
[1721582107627,3.283874,3522.6,3522.0,2.2521]
[1721582107835,0.283874,3522.6,3522.0,2.2521]
[1721582108040,3.122684,3522.6,3522.0,2.2521]
[1721582108261,2.83899,3522.4,3521.7,2.2521]
[1721582108829,2.83899,3522.4,3521.7,5.09161]
[1721582109261,2.83899,3522.4,3521.4,5.09187]
[1721582109530,2.83905,3522.3,3521.4,2.2521]
[1721582109835,0.6122684,3522.5,3521.4,2.2521]
[1721582109836,3.18427184,3522.2,3521.4,2.2521]
[1721582110159,2.83939,3521.9,3521.4,2.2521]
[1721582111753,3.18427184,3522.2,3521.4,2.2521]
[1721582111754,2.83926,3522.1,3521.4,2.2521]
[1721582113279,3.18427184,3522.2,3521.4,2.2521]
[1721582113484,2.83938,3521.9,3521.4,2.2521]
[1721582114167,2.83946,3521.8,3521.4,2.2521]
[1721582114369,2.83959,3521.7,3521.0,2.2521]
[1721582114585,2.83969,3521.6,3521.0,2.2521]
[1721582115855,2.83978,3521.4,3521.0,2.2521]
[1721582116668,2.83967,3521.6,3521.0,2.2521]
[1721582117286,2.8397,3521.5,3521.0,2.2521]
[1721582117886,1.778213,3521.6,3520.6,2.278]
[1721582118050,2.84034,3520.7,3520.6,7.3]
[1721582118250,2.84034,3520.7,3519.4,0.58809861]
[1721582118251,2.84042,3520.6,3519.9,7.3]
[1721582118553,2.84058,3520.4,3519.9,9.578]
[1721582118867,2.84058,3520.4,3519.5,2.84129]
[1721582118868,2.84075,3520.2,3519.5,2.84129]
[1721582119071,2.84092,3520.0,3519.4,7.3]
[1721582119386,0.568133,3520.1,3519.4,7.3]
[1721582119387,2.84086,3520.1,3519.4,7.3]
[1721582119887,2.84098,3519.9,3519.4,7.3]
[1721582120203,2.84108,3519.8,3519.4,7.3]
[1721582120349,4.05085,3520.5,3519.0,22.048]
[1721582120350,0.568199,3519.7,3519.0,22.048]
[1721582120550,1.2103,3520.5,3519.0,22.048]
[1721582120551,2.84072,3520.3,3519.0,22.048]
[1721582120895,2.992,3520.0,3519.0,7.3]
[1721582121103,2.84163,3519.1,3519.0,7.3]
[1721582121253,2.84157,3519.2,3518.2,7.3]
[1721582121758,2.84182,3518.9,3518.2,7.3]
[1721582122185,2.84172,3519.0,3518.2,10.14235]
[1721582122400,2.84148,3519.3,3518.2,10.14235]
[1721582122551,2.84148,3519.3,3518.5,2.84208]
[1721582123050,2.84148,3519.3,3518.3,2.84227]
[1721582123051,2.84157,3519.2,3518.3,2.84227]
[1721582123292,2.84143,3519.4,3518.5,2.84209]
[1721582123493,3.409685,3519.4,3518.7,2.8419]
[1721582123652,3.409685,3519.4,3518.6,2.84197]
[1721582124276,2.84149,3519.3,3518.6,2.84197]
[1721582125851,3.409675,3519.4,3518.6,2.84197]
[1721582126192,2.84116,3519.7,3518.9,2.84172]
[1721582126400,3.0,3519.6,3518.9,2.84172]
[1721582126609,3.0,3519.6,3518.3,2.278]
[1721582126610,3.0,3519.6,3519.0,2.84166]
[1721582126770,5.84126,3519.6,3518.8,2.8418]
[1721582127457,3.0,3519.6,3518.9,2.84178]
[1721582127657,3.0,3519.7,3518.9,2.84178]
[1721582127880,1.2103,3520.5,3518.6,7.3]
[1721582127881,2.992,3521.0,3519.3,2.84147]
[1721582128078,0.35,3520.4,3519.5,7.3]
[1721582128289,2.84072,3520.3,3519.5,10.14123]
[1721582128595,2.8405,3520.5,3519.5,10.14123]
[1721582128801,0.28405,3520.4,3519.5,10.14123]
[1721582129186,2.84076,3520.2,3519.5,10.14123]
[1721582129387,2.84076,3520.2,3519.5,2.84123]
[1721582129586,0.28405,3520.4,3519.2,7.3]
[1721582129793,2.84107,3519.8,3519.2,7.3]
[1721582129962,2.8407,3520.3,3519.2,7.3]
[1721582130169,3.0,3520.2,3519.3,2.84147]
[1721582130499,3.0,3520.2,3519.2,7.3]
[1721582130707,3.0,3520.2,3519.4,2.84135]
[1721582131094,2.84084,3520.1,3519.4,2.84135]
[1721582131296,3.0,3520.2,3519.5,2.8413]
[1721582131622,2.84092,3520.0,3519.2,10.14154]
[1721582132103,2.84092,3520.0,3519.3,2.84145]
[1721582132264,2.84091,3520.0,3519.2,7.3]
[1721582132463,2.84099,3519.9,3519.2,10.14148]
[1721582132713,3.13804405,3519.9,3519.2,10.14148]
[1721582132870,0.29705405,3519.9,3519.5,2.8413]
[1721582133215,0.29705405,3519.9,3519.3,2.84146]
[1721582133216,0.29705405,3519.9,3519.6,2.84123]
[1721582133512,0.29705405,3519.9,3519.4,2.84135]
[1721582134118,0.29705405,3519.9,3519.7,2.84114]
[1721582134506,0.29705405,3519.9,3519.5,2.84127]
[1721582135108,0.29705405,3519.9,3519.6,2.84122]
[1721582135543,0.29705405,3519.9,3519.4,2.84135]
[1721582137141,0.29705405,3519.9,3519.2,10.1415]
[1721582137302,3.13804405,3519.9,3519.2,10.1415]
[1721582137829,3.13804405,3519.9,3517.7,0.58809861]
[1721582137830,1.19493346,3519.9,3518.6,2.2996]
[1721582138053,1.19493346,3519.9,3518.6,5.14163]
[1721582138054,2.84123,3519.6,3518.6,5.14163]
[1721582138346,2.84123,3519.6,3518.6,2.2996]
[1721582138347,2.84145,3519.4,3518.6,2.2996]
[1721582138502,2.84145,3519.4,3518.6,5.14161]
[1721582138705,2.84149,3519.3,3518.6,5.14161]
[1721582138951,2.84155,3519.2,3518.6,5.14161]
[1721582141132,2.84155,3519.2,3518.6,2.2996]
[1721582142250,2.84155,3519.2,3518.1,2.2996]
[1721582142251,2.84171,3519.0,3518.1,2.2996]
[1721582142416,3.35,3519.6,3518.1,2.2996]
[1721582142747,2.84208,3518.6,3518.1,2.2996]
[1721582143133,3.0,3519.3,3518.1,2.2996]
[1721582143333,2.84191,3518.8,3517.6,2.2996]
[1721582143535,2.84213,3518.5,3517.8,2.84267]
[1721582144021,2.84199,3518.7,3517.9,2.84258]
[1721582146853,2.84191,3518.8,3517.7,2.84273]
[1721582147172,2.84213,3518.5,3517.7,2.84273]
[1721582147551,2.84213,3518.5,3517.8,2.84266]
[1721582148370,2.84213,3518.5,3517.9,2.84259]
[1721582148577,0.29703018,3518.6,3518.1,2.84239]
[1721582148745,0.29703018,3518.6,3518.0,2.84249]
[1721582150755,2.84218,3518.5,3517.8,2.84264]
[1721582150957,0.29703018,3518.6,3517.6,9.5996]
[1721582150958,2.84244,3518.1,3517.6,7.3]
[1721582151157,2.8422,3518.4,3517.5,2.84291]
[1721582151158,2.84232,3518.3,3517.5,2.84291]
[1721582151691,3.13908018,3518.6,3517.6,2.84284]
[1721582151893,2.8423,3518.3,3517.6,2.84284]
[1721582152065,2.84237,3518.2,3517.6,2.84284]
[1721582153073,2.84231,3518.3,3517.6,2.84284]
[1721582153593,2.84237,3518.2,3517.6,2.84284]
[1721582153898,2.84237,3518.2,3517.4,2.84296]
[1721582154969,2.84237,3518.2,3517.5,2.84292]
[1721582155173,2.84245,3518.1,3517.3,2.84308]
[1721582155574,2.84254,3518.0,3517.3,2.84308]
[1721582156613,2.84269,3517.8,3517.2,9.7945]
[1721582156816,2.84277,3517.7,3517.2,9.7945]
[1721582157211,1.2103,3518.3,3517.2,7.3]
[1721582157403,2.84276,3517.7,3517.2,7.3]
[1721582158069,2.84269,3517.8,3517.2,7.3]
[1721582158510,2.84221,3518.4,3517.5,2.84292]
[1721582158718,2.84245,3518.1,3517.6,2.3825]
[1721582159282,2.84252,3518.0,3517.6,2.3825]
[1721582159488,2.84238,3518.2,3517.2,12.52563]
[1721582159489,2.8426,3517.9,3517.2,12.52563]
[1721582159687,2.84252,3518.0,3517.2,9.6825]
[1721582159993,2.84294,3517.5,3517.2,7.3]
[1721582160217,2.84302,3517.4,3517.2,7.3]
[1721582160591,2.84308,3517.3,3517.2,7.3]
[1721582160921,3.126812,3518.0,3516.8,2.3825]
[1721582160922,2.84303,3517.4,3516.8,2.3825]
[1721582161082,2.8431,3517.3,3516.8,2.3825]
[1721582161283,2.84299,3517.5,3516.8,5.22598]
[1721582161785,2.84286,3517.6,3516.9,2.84334]
[1721582161984,3.0,3517.9,3516.8,2.3825]
[1721582162225,0.284252,3518.0,3517.2,2.84308]
[1721582162226,3.126782,3518.0,3517.2,2.84308]
[1721582162436,2.8426,3517.9,3517.1,2.84324]
[1721582162730,5.84228,3518.3,3517.5,2.84291]
[1721582163041,1.2103,3518.9,3517.6,2.3825]
[1721582163336,1.2103,3518.9,3517.6,5.22534]
[1721582163337,3.13944553,3518.2,3517.6,5.22534]
[1721582163640,2.84212,3518.5,3517.6,5.22534]
[1721582163850,0.29708957,3518.2,3517.6,5.22534]
[1721582163982,0.29708957,3518.2,3517.9,2.84255]
[1721582164198,0.29708957,3518.2,3517.7,2.84275]
[1721582164608,0.29708957,3518.2,3517.6,5.22534]
[1721582164807,0.29708957,3518.2,3517.9,2.84254]
[1721582165449,0.29708957,3518.2,3518.0,2.84251]
[1721582165740,0.29708957,3518.2,3517.8,2.84266]
[1721582165906,0.29708957,3518.2,3517.9,2.84255]
[1721582167664,0.29708957,3518.2,3518.0,2.84252]
[1721582167952,0.29708957,3518.2,3517.7,2.84274]
[1721582168342,0.29708957,3518.2,3517.9,2.84254]
[1721582169356,0.29708957,3518.2,3517.6,2.3825]
[1721582169661,0.29708957,3518.2,3518.1,5.22494]
[1721582169955,0.29708957,3518.2,3518.1,8.06738]
[1721582171172,0.29708957,3518.2,3518.1,10.90982]
[1721582171353,2.84107,3519.8,3518.9,2.84176]
[1721582171943,0.29704369,3519.7,3518.9,2.84176]
[1721582172836,2.84131,3519.5,3518.9,2.84176]
[1721582173270,3.13823369,3519.7,3518.8,2.3825]
[1721582173580,0.29704369,3519.7,3518.8,2.3825]
[1721582173988,0.29704369,3519.7,3519.5,2.84129]
[1721582174291,0.29704369,3519.7,3519.6,8.13366]
[1721582174848,2.84036,3520.7,3519.9,2.84096]
[1721582175048,0.29702373,3520.1,3519.9,2.84096]
[1721582175364,2.84036,3520.7,3519.9,2.84096]
[1721582175560,0.29702579,3520.1,3519.9,2.84096]
[1721582175883,1.2103,3521.3,3519.6,9.7512]
[1721582175884,2.84011,3521.0,3520.2,2.84067]
[1721582176086,0.35,3521.4,3520.4,2.84052]
[1721582176286,2.83987,3521.3,3520.2,5.29187]
[1721582176456,2.84019,3520.9,3520.2,5.29187]
[1721582176653,2.84029,3520.8,3520.2,2.4512]
[1721582177689,0.59771594,3520.9,3520.2,2.4512]
[1721582177849,3.43790594,3520.9,3520.2,5.29194]
[1721582179163,2.84026,3520.8,3520.2,2.4512]
[1721582179697,2.84053,3520.5,3520.2,2.4512]
[1721582179908,2.84066,3520.4,3519.7,2.4019]
[1721582180203,2.84089,3520.1,3519.7,2.4019]
[1721582180359,2.84043,3520.6,3519.7,2.4019]
[1721582180553,2.84066,3520.3,3519.7,2.4019]
[1721582180954,2.84074,3520.2,3519.7,2.4019]
[1721582181492,2.84059,3520.4,3519.7,2.4019]
[1721582182608,2.84068,3520.3,3519.7,2.4019]
[1721582183400,5.84032,3520.8,3519.7,5.24303]
[1721582183606,5.84032,3520.8,3520.0,2.84084]
[1721582183607,2.84032,3520.8,3520.0,2.84084]
[1721582183785,3.0,3520.7,3519.8,2.84106]
[1721582184306,2.84058,3520.4,3519.7,5.24302]
[1721582184587,3.0,3520.7,3519.8,2.84104]
[1721582184588,2.84051,3520.5,3519.8,2.84104]
[1721582185353,2.84064,3520.4,3519.7,2.4019]
[1721582185556,2.84073,3520.3,3519.7,2.4019]
[1721582186303,3.14043,3520.6,3519.7,5.24303]
[1721582186481,2.84059,3520.4,3519.7,5.24303]
[1721582186994,2.84059,3520.4,3519.8,2.84106]
[1721582187791,2.84072,3520.3,3519.7,2.4019]
[1721582188589,2.84074,3520.2,3519.7,2.4019]
[1721582190002,2.84097,3520.0,3519.7,2.4019]
[1721582190164,2.84102,3519.9,3519.7,2.4019]
[1721582190361,2.84097,3520.0,3519.7,2.4019]
[1721582190775,3.53085401,3520.2,3519.7,2.4019]
[1721582191193,2.84062,3520.4,3519.7,2.4019]
[1721582191406,2.84062,3520.4,3519.7,5.24303]
[1721582191611,3.0,3520.5,3519.9,2.84098]
[1721582191813,3.0,3520.5,3520.0,2.4019]
[1721582192025,2.84072,3520.3,3520.0,2.4019]
[1721582192179,2.84075,3520.2,3519.5,2.4019]
[1721582192896,2.84088,3520.1,3519.5,2.4019]
[1721582193445,0.568123,3520.3,3519.5,2.4019]
[1721582193446,2.84092,3520.0,3519.5,2.4019]
[1721582193784,2.84075,3520.2,3519.5,2.4019]
[1721582193984,2.84086,3520.1,3519.5,2.4019]
[1721582194623,2.8409,3520.0,3519.5,2.4019]
[1721582194981,2.84101,3519.9,3519.5,2.4019]
[1721582195213,2.84107,3519.8,3519.5,2.4019]
[1721582195421,2.84107,3519.8,3519.2,2.4019]
[1721582195422,2.84121,3519.7,3519.2,2.4019]
[1721582195587,2.84119,3519.7,3519.2,2.4019]
[1721582195788,2.84139,3519.4,3519.2,2.4019]
[1721582196247,2.84119,3519.7,3519.2,2.4019]
[1721582196393,2.84092,3520.0,3519.2,2.4019]
[1721582196589,2.84084,3520.1,3519.4,2.84138]
[1721582196789,5.84092,3520.0,3519.4,2.84138]
[1721582197403,5.84092,3520.0,3519.2,5.24343]
[1721582197589,3.0,3520.0,3519.3,2.84147]
[1721582197789,3.0,3520.0,3519.5,2.84129]
[1721582198325,3.0,3520.0,3519.3,2.84147]
[1721582198539,2.84098,3520.0,3519.3,2.84147]
[1721582198740,2.84086,3520.1,3519.4,2.84132]
[1721582198884,2.84086,3520.1,3519.3,2.84147]
[1721582198885,2.84059,3520.4,3519.7,2.4761]
[1721582199088,2.84076,3520.2,3519.7,2.4761]
[1721582199391,3.284059,3520.3,3519.7,2.4761]
[1721582199392,2.84083,3520.1,3519.7,2.4761]
[1721582199623,5.84083,3520.1,3519.7,2.4761]
[1721582199825,2.84083,3520.1,3519.7,2.4761]
[1721582203545,2.84091,3520.0,3519.7,2.4761]
[1721582203915,2.84074,3520.2,3519.7,2.4761]
[1721582204306,0.8965399,3520.2,3519.7,2.4761]
[1721582204528,2.84091,3520.0,3519.7,2.4761]
[1721582206775,2.84101,3519.9,3519.7,2.4761]
[1721582208180,2.84107,3519.8,3519.7,2.4761]
[1721582212673,2.84137,3519.5,3519.2,2.4761]
[1721582213192,2.84147,3519.3,3519.2,2.4761]
[1721582214111,2.84133,3519.5,3519.2,2.4761]
[1721582214332,2.84116,3519.7,3519.2,2.4761]
[1721582214610,2.84144,3519.4,3519.2,2.4761]
[1721582215025,2.84123,3519.6,3519.2,2.4761]
[1721582215026,2.84147,3519.3,3519.2,2.4761]
[1721582216352,2.84147,3519.3,3519.1,7.3]
[1721582216353,2.84155,3519.2,3519.1,7.3]
[1721582217404,2.84175,3519.0,3518.8,2.4761]
[1721582217660,2.84163,3519.1,3518.8,2.4761]
[1721582218071,2.84139,3519.4,3518.8,2.4761]
[1721582218605,2.84139,3519.4,3518.8,5.31792]
[1721582218827,2.84148,3519.3,3518.8,2.4761]
[1721582219046,2.84176,3519.0,3518.8,2.4761]
[1721582219607,2.84179,3518.9,3518.8,2.4761]
[1721582221107,2.84155,3519.2,3518.5,9.6764]
[1721582221304,2.84203,3518.6,3518.5,9.6764]
[1721582221505,2.84203,3518.6,3518.5,7.3]
[1721582221506,5.68406,3518.6,3518.5,7.3]
[1721582221746,2.84228,3518.3,3518.2,2.3764]
[1721582221904,2.84228,3518.3,3516.8,0.58809861]
[1721582221905,2.84188,3518.8,3517.6,2.3764]
[1721582222123,2.84214,3518.5,3517.6,2.3764]
[1721582222339,2.84236,3518.2,3517.6,2.3764]
[1721582222509,2.84223,3518.4,3517.7,2.84269]
[1721582222865,3.126158,3518.7,3518.0,2.84251]
[1721582222866,2.84201,3518.7,3518.0,2.84251]
[1721582223010,2.84198,3518.7,3518.0,2.84251]
[1721582223214,2.84181,3518.9,3518.0,2.84251]
[1721582223448,3.0,3518.8,3518.0,2.84251]
[1721582223748,3.0,3518.8,3516.9,4.48301791]
[1721582223749,5.84193,3518.8,3518.2,2.84234]
[1721582223956,2.84193,3518.8,3518.3,2.3764]
[1721582224139,2.84202,3518.7,3518.3,2.3764]
[1721582225154,0.29713473,3519.0,3518.3,2.3764]
[1721582225457,2.84188,3518.8,3518.3,2.3764]
[1721582225755,2.84209,3518.6,3518.3,2.3764]
[1721582226356,2.84212,3518.5,3518.3,2.3764]
[1721582226723,0.31390147,3518.8,3518.3,2.3764]
[1721582226724,2.8422,3518.4,3518.3,2.3764]
[1721582227759,2.84206,3518.6,3518.3,2.3764]
[1721582228554,0.31390147,3518.8,3518.3,2.3764]
[1721582228759,5.84184,3518.9,3518.3,2.3764]
[1721582228910,5.84184,3518.9,3516.9,5.992]
[1721582228911,0.29713473,3519.0,3518.8,2.84184]
[1721582229112,0.29713473,3519.0,3518.9,2.3764]
[1721582229348,1.2103,3520.4,3518.9,2.3764]
[1721582229349,2.84156,3519.2,3518.9,2.3764]
[1721582230946,2.8414,3519.4,3518.9,2.3764]
[1721582231845,2.84148,3519.3,3518.9,2.3764]
[1721582232046,2.84156,3519.2,3518.9,2.3764]
[1721582232455,2.84164,3519.1,3518.9,2.3764]
[1721582232814,2.84148,3519.3,3518.9,2.3764]
[1721582233015,3.43937338,3519.4,3518.9,2.3764]
[1721582234253,2.84148,3519.3,3518.9,2.3764]
[1721582235348,0.59797338,3519.4,3518.9,2.3764]
[1721582235851,3.43938338,3519.4,3518.9,2.3764]
[1721582236735,0.59797338,3519.4,3518.9,2.3764]
[1721582236911,3.43936338,3519.4,3518.9,2.3764]
[1721582237613,3.29710382,3519.6,3518.9,2.3764]
[1721582237614,0.29710382,3519.6,3518.9,2.3764]
[1721582237815,0.29710382,3519.6,3519.0,2.84171]
[1721582238056,0.29710382,3519.6,3519.1,2.3307]
[1721582238265,2.84067,3520.3,3519.5,2.3307]
[1721582238435,2.84067,3520.3,3519.6,2.84121]
[1721582238832,2.84076,3520.2,3519.6,2.84121]
[1721582239366,0.29707467,3520.5,3519.9,2.84092]
[1721582239523,0.29707467,3520.5,3519.8,2.84105]
[1721582239524,2.84051,3520.5,3519.8,2.84105]
[1721582239723,2.84051,3520.5,3519.9,2.3307]
[1721582240557,2.84035,3520.7,3519.9,5.17166]
[1721582240758,0.568054,3520.6,3520.0,2.84083]
[1721582241065,2.84035,3520.7,3520.0,2.84083]
[1721582241770,2.84035,3520.7,3519.9,2.3307]
[1721582241771,2.84048,3520.6,3519.9,5.17168]
[1721582242278,2.8402,3520.9,3520.0,2.84086]
[1721582242279,2.84029,3520.8,3520.0,2.84086]
[1721582242747,2.84035,3520.7,3520.0,2.84086]
[1721582243347,2.84026,3520.8,3519.9,2.3307]
[1721582243569,0.29704913,3521.0,3519.9,2.3307]
[1721582243570,2.84056,3520.5,3519.9,2.3307]
[1721582245225,3.15407091,3520.7,3519.9,2.3307]
[1721582245454,3.15407091,3520.7,3520.0,2.84089]
[1721582246561,0.29704913,3521.0,3519.9,2.3307]
[1721582246768,0.29704913,3521.0,3520.5,2.3307]
[1721582246935,3.13715913,3521.0,3520.5,2.3307]
[1721582247466,2.8402,3520.9,3520.5,2.3307]
[1721582247778,0.29704913,3521.0,3520.5,2.3307]
[1721582247779,2.84031,3520.8,3520.5,2.3307]
[1721582250137,2.84042,3520.6,3520.5,2.3307]
[1721582250338,2.84056,3520.5,3520.1,2.3307]
[1721582251644,2.8406,3520.4,3520.1,2.3307]
[1721582252241,2.84047,3520.6,3520.1,2.3307]
[1721582252447,2.84019,3520.9,3520.1,2.3307]
[1721582252664,2.84034,3520.7,3520.1,2.3307]
[1721582253455,2.84043,3520.6,3520.1,2.3307]
[1721582253940,2.8403,3520.8,3520.1,2.3307]
[1721582254139,2.8403,3520.8,3520.3,2.3545]
[1721582254355,3.13716913,3521.0,3520.3,2.3545]
[1721582255164,0.29704913,3521.0,3520.3,2.3545]
[1721582255479,3.13715913,3521.0,3520.4,2.84053]
[1721582255844,3.13715913,3521.0,3520.3,2.3545]
[1721582256045,2.84018,3520.9,3520.3,2.3545]
[1721582256992,2.84018,3520.9,3520.3,5.19515]
[1721582257296,0.29704913,3521.0,3520.6,2.4076]
[1721582258257,0.29704913,3521.0,3520.8,2.84025]
[1721582258458,0.29704913,3521.0,3520.9,2.4076]
[1721582258679,2.83986,3521.3,3520.9,2.4076]
[1721582260580,2.8397,3521.5,3520.9,2.4076]
[1721582261880,2.83978,3521.4,3520.9,2.4076]
[1721582262288,2.83987,3521.3,3520.9,2.4076]
[1721582266720,3.45330522,3521.6,3521.0,2.84008]
[1721582266882,2.83964,3521.6,3521.0,2.84008]
[1721582267085,2.83964,3521.6,3521.1,2.3235]
[1721582268393,2.83953,3521.7,3521.1,5.16351]
[1721582270626,2.83986,3521.3,3521.1,2.3235]
[1721582274641,0.567957,3521.3,3520.8,2.3235]
[1721582274825,5.68039,3520.9,3520.8,2.3235]
[1721582275702,0.2970525,3521.5,3520.3,2.3235]
[1721582275703,2.8399,3521.3,3520.3,2.3235]
[1721582275941,2.84058,3520.4,3520.3,2.3235]
[1721582277544,3.0,3521.2,3519.8,9.6997]
[1721582277545,2.84098,3519.9,3519.8,9.6997]
[1721582277702,2.84088,3520.1,3519.8,9.6997]
[1721582277703,2.84088,3520.1,3519.8,2.3997]
[1721582278147,2.84042,3520.6,3519.8,2.3997]
[1721582278445,2.84098,3519.9,3519.8,2.3997]
[1721582278900,2.84092,3520.0,3519.3,2.3997]
[1721582278901,2.8411,3519.8,3519.3,2.3997]
[1721582279554,5.84055,3520.5,3519.3,2.3997]
[1721582279707,2.8411,3519.8,3519.3,2.3997]
[1721582279904,1.2103,3519.8,3518.5,2.84207]
[1721582280103,1.2103,3519.8,3517.6,1.17619723]
[1721582280104,2.92832215,3518.6,3515.2,0.2844]
[1721582280404,1.7,3519.3,3517.0,2.84333]
[1721582280405,0.70882482,3518.5,3517.0,2.84333]
[1721582280607,4.59070931,3518.4,3517.3,2.843]
[1721582280841,3.69860994,3518.3,3517.3,2.843]
[1721582281053,0.85632994,3518.2,3516.7,2.01]
[1721582281231,2.84261,3517.9,3516.7,4.85356]
[1721582281557,0.85632994,3518.1,3516.9,2.8434]
[1721582281558,3.69904994,3517.8,3516.9,2.8434]
[1721582281840,0.89210937,3518.6,3516.9,2.84338]
[1721582282044,2.84263,3517.9,3516.9,2.84338]
[1721582282214,2.84277,3517.7,3516.7,4.85357]
[1721582282421,2.84269,3517.8,3516.8,2.84348]
[1721582282729,2.84253,3518.0,3517.1,2.01]
[1721582283051,0.85485207,3517.9,3517.1,4.85322]
[1721582283201,0.85485207,3517.9,3517.2,2.3997]
[1721582283402,2.84262,3517.9,3517.2,2.3997]
[1721582284039,2.84253,3518.0,3517.2,2.3997]
[1721582284040,2.84271,3517.8,3517.2,2.3997]
[1721582284234,2.84271,3517.8,3517.3,0.55]
[1721582284883,2.84253,3518.0,3517.3,0.55]
[1721582285261,2.84261,3517.9,3517.3,0.55]
[1721582285656,2.84235,3518.3,3517.3,0.55]
[1721582285990,2.84204,3518.6,3517.3,0.55]
[1721582285991,2.84261,3517.9,3517.3,0.55]
[1721582289853,2.84268,3517.8,3517.3,0.55]
[1721582290387,0.29721769,3517.7,3517.3,0.55]
[1721582290595,2.84293,3517.5,3517.3,0.55]
[1721582290744,2.84296,3517.5,3517.3,0.55]
[1721582290944,3.44125177,3517.5,3517.3,0.55]
[1721582291564,0.59829177,3517.5,3517.3,0.55]
[1721582291841,3.13997769,3517.7,3517.3,0.55]
[1721582292796,0.29721769,3517.7,3517.6,2.84284]
[1721582292960,0.29721769,3517.7,3517.6,3.39284]
[1721582293143,0.29721769,3517.7,3517.6,0.55]
[1721582293582,0.29721769,3517.7,3517.6,3.39284]
[1721582293802,2.84203,3518.7,3517.6,3.39284]
[1721582294093,0.29716487,3518.2,3517.7,3.39274]
[1721582294242,5.25968,3519.3,3517.7,0.55]
[1721582294243,2.4182,3519.3,3517.7,0.55]
[1721582294442,2.84234,3518.3,3517.4,0.55]
[1721582294694,2.84252,3518.0,3517.3,0.55]
[1721582295494,2.84234,3518.3,3517.4,2.84298]
[1721582295707,2.84214,3518.5,3517.5,0.55]
[1721582295864,2.84214,3518.5,3517.7,2.84275]
[1721582296060,0.59813972,3518.4,3517.8,0.55]
[1721582296517,0.59813972,3518.4,3517.9,2.84259]
[1721582296660,3.13921724,3518.6,3518.0,0.55]
[1721582296860,3.13921724,3518.6,3517.8,0.55]
[1721582296861,0.29717724,3518.6,3517.8,0.55]
[1721582297098,0.29717724,3518.6,3518.1,2.4015]
[1721582297397,0.29717724,3518.6,3518.2,0.55]
[1721582297697,3.13921724,3518.6,3518.2,0.55]
[1721582298000,0.61392172,3518.5,3518.2,0.55]
[1721582298198,3.13921724,3518.6,3518.2,0.55]
[1721582298714,2.8422,3518.4,3518.2,0.55]
[1721582298861,3.13921724,3518.6,3518.2,0.55]
[1721582299293,3.13921724,3518.6,3517.8,2.84262]
[1721582299294,3.13921724,3518.6,3517.9,0.55]
[1721582299893,2.84213,3518.5,3517.9,0.55]
[1721582300103,2.84213,3518.5,3517.8,0.55]
[1721582300631,0.89812672,3518.5,3517.8,0.55]